Cogmind - Beta 14 @@@ ROGUE MODE // 2024.12.07 @ 20:30:25 Player: hoganstuff Result: Destroyed self with Grenade Launcher Performance ------------- Evolutions (0) 0 Regions Visited (3) 600 Robots Destroyed (19) 95 Value Destroyed (532) 532 Prototype IDs (0) 0 Alien Tech Used (0) 0 Bonus (0) 0 TOTAL SCORE: 1227 Bonus ------- None Cogmind --------- Core Integrity 0/250 Matter 266/300 Energy 200/200 System Corruption 6% Temperature Cool (0) Movement Walking (120) Location -10/Subcaves Parts ------- > --- POWER (1) -------- Subdweller Power Source > --- PROPULSION (2) --- Aluminum Leg Aluminum Leg > --- UTILITY (2) ------ Small Storage Unit Improved Targeting Computer > --- WEAPON (2) ------- Subdweller Laser Grenade Launcher > --- INVENTORY (8) ---- Ion Engine Flight Unit Flight Unit Improved Heat Sink Scrap Shield Mining Laser Peak State ------------ > --- POWER ------------ Subdweller Power Source > --- PROPULSION ------- Aluminum Leg Aluminum Leg > --- UTILITY ---------- Small Storage Unit Improved Targeting Computer > --- WEAPON ----------- Particle Gun Light Assault Rifle > --- INVENTORY -------- Ion Engine Flight Unit Flight Unit Improved Heat Sink Scrap Shield Grenade Launcher Mining Laser [Rating: 11] Favorites ----------- Power Ion Engine Engine Ion Engine Propulsion Light Treads Treads Light Treads Leg Aluminum Leg Wheel Compact Wheel Utility Small Storage Unit Storage Small Storage Unit Processor Improved Targeting Computer Weapon Assault Rifle Energy Gun Particle Gun Ballistic Gun Assault Rifle Launcher Grenade Launcher Special Weapon Mining Laser Build | -11 -10 -10 -10 ------- Run | Yrd Mat Min Sub Slots Evolved . | . . . . Power . | . . . . Propulsion . | . . . . Utility . | . . . . Weapon . | . . . . Parts Attached 24 | 7 2 4 11 Power 2 | 1 . . 1 Engine 2 | 1 . . 1 Core . | . . . . Reactor . | . . . . Propulsion 7 | 3 . 2 2 Treads 2 | 2 . . . Leg 4 | . . 2 2 Wheel 1 | 1 . . . Hover . | . . . . Flight . | . . . . Utility 3 | 1 2 . . Device . | . . . . Storage 1 | 1 . . . Processor 2 | . 2 . . Hackware . | . . . . Protection . | . . . . Artifact . | . . . . Weapon 12 | 2 . 2 8 Energy Gun 3 | . . 1 2 Energy Cannon . | . . . . Ballistic Gun 4 | 2 . . 2 Ballistic Cannon . | . . . . Launcher 2 | . . . 2 Special Weapon 3 | . . 1 2 Impact Weapon . | . . . . Slashing Weapon . | . . . . Piercing Weapon . | . . . . Special Melee Weapon . | . . . . Unidentified Prototypes . | . . . . Parts Lost 5 | . . 1 4 Power 1 | . . . 1 Propulsion 2 | . . 1 1 Utility . | . . . . Weapon 2 | . . . 2 Highest Loss Streak 2 | . . 1 2 To Critical Strikes . | . . . . Average Slot Usage (%) 99 | . 98 99 99 Engine 13 | . 14 14 13 Treads 13 | . 28 3 . Leg 14 | . . 24 28 Storage 14 | . 14 14 14 Processor 13 | . 12 14 14 Energy Gun 5 | . . 12 10 Ballistic Gun 20 | . 28 15 12 Special Weapon 2 | . . 1 5 Peak Build Rating 11 | 6 8 10 11 Average Rating 8 | 4 7 9 9 On Entrance 6 | . 6 8 10 Naked Turns . | . . . . Heaviest Build 17 | 14 14 15 17 Greatest Support 40 | 40 40 20 20 Greatest Overweight (x) 1 | . . 1 . Average Overweight (x) . | . . . . Largest Inventory Capacity 8 | 8 8 8 8 Average Capacity 7 | 6 8 8 8 Most Carried 8 | 3 7 8 8 Average Carried 5 | 2 3 7 7 Final Capacity 8 | 8 8 8 8 Final Carried 8 | 3 7 8 7 Class Distribution -------------------- 82% | Mutant 17% | Scavenger-Mutant Dominant Class ---------------- Mutant | -10/Materials Mutant | -10/Mines Mutant | -10/Subcaves Resources | -11 -10 -10 -10 ----------- Run | Yrd Mat Min Sub Matter Collected 694 | 189 217 114 174 Remotely . | . . . . Salvage Created 580 | . 248 141 191 Parts 43 | . 18 15 10 Haulers Intercepted . | . . . . Recyclers Shooed . | . . . . Parts Field Recycled . | . . . . Retrieved Matter . | . . . . Parts Self-Destructed 4 | . . . 4 Prevented . | . . . . Kills | -11 -10 -10 -10 ------- Run | Yrd Mat Min Sub Combat Hostiles Destroyed 16 | . 6 5 5 Guns 15 | . 6 5 4 AOE 1 | . . . 1 Classes Destroyed 5 | . 3 1 1 Tunneler 1 | . . 1 . Watcher 2 | . 2 . . Swarmer 5 | . 2 3 . Grunt 6 | . 4 2 . Subdweller 5 | . . . 5 Best Kill Streak 3 | . 3 3 1 Combat Bots Only 3 | . 2 3 1 Max Kills in Single Turn 1 | . 1 1 1 Gunslinging . | . . . . Exploded 1 | . . . 1 Melee . | . . . . Uniques/NPCs Destroyed . | . . . . Combat | -11 -10 -10 -10 -------- Run | Yrd Mat Min Sub Hostile Shots Fired 95 | . 34 22 39 Missed 32 | . 13 5 14 Damage Taken 1160 | . 295 226 639 Core 256 | . 57 61 138 Absorbed by Shields . | . . . . Core Remaining (%) 100 | 100 . . . Volleys Fired 82 | . 23 14 45 Largest 2 | . 2 2 2 Hottest 100 | . 40 100 100 Shots Fired 147 | . 46 26 75 Gun 132 | . 46 24 62 Cannon . | . . . . Launcher 2 | . . . 2 Special 13 | . . 2 11 Kinetic 96 | . 46 20 30 Thermal 49 | . . 6 43 Explosive 2 | . . . 2 Electromagnetic . | . . . . Robot Hit Streak 17 | . 17 9 15 Robot Miss Streak 2 | . 2 2 2 Penetration Max . | . . . . Secondary Targets 1 | . 1 . . Max Gunslinging Chain 1 | . 1 . . Shots Hit Robots 102 | . 37 15 50 Core Hits 37 | . 16 9 12 Critical Kills . | . . . . Critical Parts Destroyed 1 | . 1 . . Critical Strikes 2 | . 1 . 1 Burn 1 | . . . 1 Destroy 1 | . 1 . . Melee Attacks . | . . . . Impact . | . . . . Slashing . | . . . . Piercing . | . . . . Sneak Attacks . | . . . . Combat Hostiles . | . . . . Follow-up Attacks . | . . . . Damage Inflicted 1337 | . 451 209 677 Guns 1210 | . 441 195 574 Cannons . | . . . . Explosions 77 | . . . 77 Melee . | . . . . Ramming 24 | . 10 14 . Kinetic 826 | . 441 169 216 Thermal 410 | . . 26 384 Explosive 77 | . . . 77 Electromagnetic . | . . . . Impact . | . . . . Slashing . | . . . . Piercing . | . . . . Highest Corruption 6 | . 6 6 6 Average Corruption 4 | . 3 6 6 Corruption Purged . | . . . . Corruption Blocked . | . . . . Effects 39 | . 10 7 22 Message Errors 7 | . 4 . 3 Matter Fused 7 | . 1 3 3 Heat Flow Errors 7 | . 1 2 4 Energy Discharges 10 | . 2 1 7 Parts Rejected 1 | . . . 1 Parts Fused 1 | . 1 . . Data Loss (minor) 2 | . . 1 1 Data Loss (major) 2 | . 1 . 1 Misfires 1 | . . . 1 Alerts 1 | . . . 1 Overload Shots . | . . . . Overflow Damage . | . . . . Projectiles . | . . . . Explosions . | . . . . Melee . | . . . . Knockbacks . | . . . . Impact . | . . . . Kinetic . | . . . . Secondary . | . . . . Self-Inflicted Damage 43 | . . . 43 Shots 2 | . . . 2 Rammed 3 | . 3 . . Targets Rammed 5 | . 3 2 . Kicked 2 | . . 2 . Crushed . | . . . . Highest Temperature 280 | . 82 280 236 Average Temperature 42 | . 15 40 55 Received Heat Transfer 366 | . 150 105 111 Siege Activations . | . . . . Robots Corrupted . | . . . . Combat Hostiles . | . . . . Parts Fried . | . . . . Impact Corruptions . | . . . . Robots Melted . | . . . . Combat Hostiles . | . . . . Parts Melted 2 | . . . 2 Heat Transferred 1025 | . . 74 951 Parts Sabotaged . | . . . . Parts Stolen . | . . . . Parts Stripped . | . . . . Power Chain Reactions . | . . . . Alert | -11 -10 -10 -10 ------- Run | Yrd Mat Min Sub Peak Influence 140 | . 140 115 . Initial . | . . . . Average 68 | . 66 93 . Maximum Alert Level . | . . . . Low Security (%) 100 | 100 100 100 . Level 1 . | . . . . Level 2 . | . . . . Level 3 . | . . . . Level 4 . | . . . . Level 5 . | . . . . High Security . | . . . . Max Security . | . . . . Squads Dispatched . | . . . . Investigation . | . . . . Extermination . | . . . . Reinforcement . | . . . . Assault . | . . . . Garrison . | . . . . Intercept . | . . . . Searches Triggered . | . . . . Construction Impeded . | . . . . Haulers Reinforced . | . . . . Active Scanning Responses . | . . . . Cargo Convoy Interrupts . | . . . . Stealth | -11 -10 -10 -10 --------- Run | Yrd Mat Min Sub Distress Signals 1 | . . 1 . Communications Jammed . | . . . . Distress Signals . | . . . . Times Spotted 21 | . 9 5 7 Peak Tracking Total 3 | . 3 3 2 Tactical Retreats . | . . . . Traps | -11 -10 -10 -10 ------- Run | Yrd Mat Min Sub Traps Triggered 5 | . 4 . 1 Indirectly . | . . . . Trap Hack Attempts . | . . . . Triggered . | . . . . Disarmed . | . . . . Reprogrammed . | . . . . Reused . | . . . . Traps Extracted . | . . . . Installed . | . . . . Triggered . | . . . . Machines | -11 -10 -10 -10 ---------- Run | Yrd Mat Min Sub Machines Disabled . | . . . . Max in Single Turn . | . . . . Machines Repaired . | . . . . Machines Dismantled . | . . . . Machines Sabotaged . | . . . . Overloaded Fab Kills . | . . . . Hacking | -11 -10 -10 -10 --------- Run | Yrd Mat Min Sub Machines Accessed 11 | . 10 . 1 Terminals 7 | . 7 . . Fabricators . | . . . . Repair Stations 1 | . 1 . . Recycling Units 2 | . 2 . . Scanalyzers . | . . . . Garrison Access . | . . . . Total Hacks 39 | . 38 . 1 Successful 25 | . 24 . 1 Failed 14 | . 14 . . Catastrophic 1 | . 1 . . Database Lockouts . | . . . . Manual 23 | . 23 . . Terminals 32 | . 32 . . Fabricators . | . . . . Repair Stations 1 | . 1 . . Recycling Units 5 | . 5 . . Scanalyzers . | . . . . Garrison Access . | . . . . Terminal Hacks 14 | . 13 . 1 Robot Analysis 3 | . 3 . . Open Door 1 | . . . 1 Branch Access Points 1 | . 1 . . Emergency Access Points 1 | . 1 . . Terminal Index 1 | . 1 . . Scanalyzer Index 1 | . 1 . . Locate Traps 1 | . 1 . . Dispatch Records 1 | . 1 . . Surveillance Status 1 | . 1 . . Investigation Status 1 | . 1 . . Recall Reinforcements 1 | . 1 . . Zone Layout 1 | . 1 . . Fabricator Hacks . | . . . . Repair Station Hacks . | . . . . Recycling Unit Hacks 3 | . 3 . . Report Inventory 3 | . 3 . . Scanalyzer . | . . . . Garrison Access Hacks . | . . . . Unauthorized Hacks 8 | . 8 . . Terminals 6 | . 6 . . Botnet 6 | . 6 . . Fabricators . | . . . . Repair Stations . | . . . . Recycling Units 2 | . 2 . . Monitor 2 | . 2 . . Scanalyzers . | . . . . Garrison Access . | . . . . Data Cores Recovered . | . . . . Used . | . . . . Hacking Detections 7 | . 7 . . Full Trace Events 1 | . 1 . . Feedback Events . | . . . . Feedback Blocked . | . . . . Robot Schematics Acquired . | . . . . Robots Built . | . . . . Authchips . | . . . . Time . | . . . . Total Robot Build Rating . | . . . . Part Schematics Acquired . | . . . . Parts Built . | . . . . Authchips . | . . . . Time . | . . . . Total Part Build Rating . | . . . . Parts Repaired . | . . . . Time . | . . . . Parts Recycled . | . . . . Recycled Matter . | . . . . Retrieved Matter . | . . . . Retrieved Components . | . . . . Parts Scanalyzed . | . . . . Part Schematics Acquired . | . . . . Parts Damaged . | . . . . Bothacking | -11 -10 -10 -10 ------------ Run | Yrd Mat Min Sub Used RIF Installer . | . . . . Robots Hacked . | . . . . Non-combat . | . . . . Combat . | . . . . Robot Hacks Applied . | . . . . Relay Couplers Released . | . . . . Fabnet Peak Effective % . | . . . . Robots Rewired . | . . . . Allies Hacked . | . . . . Hacks Repelled . | . . . . Allies | -11 -10 -10 -10 -------- Run | Yrd Mat Min Sub Total Allies . | . . . . Largest Group . | . . . . Highest-Rated Group . | . . . . Highest-Rated Ally . | . . . . Total Orders . | . . . . Ally Attacks . | . . . . Total Damage . | . . . . Kills . | . . . . Allies Corrupted . | . . . . Allies Melted . | . . . . Intel | -11 -10 -10 -10 ------- Run | Yrd Mat Min Sub Robot Analysis Total 3 | . 3 . . Derelict Logs Recovered 3 | . . 3 . Drone Launches . | . . . . Drone Recoveries . | . . . . Exploration | -11 -10 -10 -10 ------------- Run | Yrd Mat Min Sub Turns Passed 1855 | 68 849 273 665 Spaces Moved 1096 | 38 468 177 413 Core 4 | 4 . . . Treads 504 | 33 468 3 . Legs 587 | . . 174 413 Wheels 1 | 1 . . . Hover . | . . . . Flight . | . . . . Fastest Speed 50 | 50 160 120 120 Average Speed 138 | 146 160 121 120 Slowest Speed 190 | 160 160 190 120 Overloaded Moves . | . . . . Propulsion Burnouts . | . . . . Robots Hopped . | . . . . Cave-ins Triggered . | . . . . Exploration Rate (%) 39 | 3 79 45 30 Regions Visited 3 Branch Regions 2 Pre-discovered Areas . | . . . . Known Exits Taken 1 | . 1 . . Unknown Exits Taken 2 | 1 . 1 . Scrap Searched 1 | . . 1 . Spaces Dug 5 | . . . 5 Terrain Destroyed 12 | . . . 12 Melee . | . . . . Projectile . | . . . . AOE 12 | . . . 12 Terrain Rammed . | . . . . Walls Destroyed . | . . . . Machines Disabled . | . . . . Actions | -11 -10 -10 -10 --------- Run | Yrd Mat Min Sub Total 1258 | 47 520 203 488 Wait 36 | . 19 2 15 Move 1093 | 37 467 176 413 Hop . | . . . . Pick Up 12 | 2 5 3 2 Fast Attach 11 | 7 1 1 2 Attach 3 | . . . 3 Detach 1 | 1 . . . Swap 10 | . 1 3 6 Drop 5 | . 1 2 2 Fire 82 | . 23 14 45 Melee . | . . . . Ram . | . . . . Kick 2 | . . 2 . Crush 3 | . 3 . . Escape Stasis . | . . . . Rewire . | . . . . Trap . | . . . . Miscellaneous . | . . . . Route ------- -11/Scrapyard -10/Materials (discovered 4 exits: *Mat x2 / *Min x2) -10/Mines (discovered 2 exits: *Mat / *Sub) -10/Subcaves (discovered 1 exit: [*Mat]) History --------- Turn | Location | Event 16 | -11/Scrapyard | Discovered new exit (range 15) 69 | -11/Scrapyard | Entered Materials 245 | -10/Materials | Discovered new exit (range 16) 302 | -10/Materials | Build established: Mutant 349 | -10/Materials | Identified exit to Mines 563 | -10/Materials | Discovered new exit (range 15) 731 | -10/Materials | Discovered new exit (range 5) 918 | -10/Materials | Entered Mines 972 | -10/Mines | Met a Derelict bent on vengeance 994 | -10/Mines | Learned Materials emergency access door positions 1060 | -10/Mines | Identified exit to Materials 1106 | -10/Mines | Learned Materials stockpile data 1185 | -10/Mines | Discovered new exit (range 3) 1191 | -10/Mines | Entered Subcaves 1218 | -10/Subcaves | Shifting Twisted Machinery released Flamer 1314 | -10/Subcaves | Shifting Twisted Machinery released Multitool 1449 | -10/Subcaves | Core integrity fell below 50% 1659 | -10/Subcaves | Core integrity fell below 20% 1720 | -10/Subcaves | Discovered new exit (range 12) 1856 | -10/Subcaves | Destroyed self with Grenade Launcher Last Messages --------------- 01678_ Sub. Monowheel melted. 01678_ ET-KNA(R) destroyed. 01685_ Dropped Particle Gun. 01695_ Acquired 25 matter. 01696_ System corrupted: Component data lost. 01712_ System corrupted: Energy discharge (-56). 01720_ EXIT=FOUND 01729_ System corrupted: Energy discharge (-54). 01753_ F%B%IN<9|SRXP& FBJ/S13BP : FATCKH Q 01758_ Connecting with UFD SUBCON Station... 01758_ Current location identified: Subcaves >>Open Door Sealed Heavy Doors opened. 01806_ System corrupted: Matter fused (-6). 01812_ Lgt. Assault Rifle destroyed. 01816_ Sub. Laser melted. 01816_ TZ-HB1(R) destroyed. 01822_ Acquired 24 matter. 01824_ The unstable cave ceiling collapses. 01837_ System corrupted: Heat flow error (+152). Map ----- +----------------------------------------------------+ | ??????????????????????????????????????????????? | | ??????????????????????????????????????????????? | | ??????????????????????????????????????????????? | | ??????????????????????????????????????????????? | | ??????????????????????????????????????????????? | | ??????????????????????????????????????????????? | | ??????????????????????????????????????????????? | | ??????????????????????????????????????????????? | | ????????????????????#?# ?????????????????????? | | ???????????????????? # #???????????????????? | | ???????????????????? ????????????????????? | | ???????????????????? ????????????????????? | | ????????????????????# ????????????????????? | | ???????????????????## ????????????????????? | | ???????????????????# #????????????????????? | | ??????????????????? ##???????????????????? | | ??????????????????? ????????????????????? | | ???????????????????? ????????????????????? | | ???????????????????? ?????????????????????? | | ????????????????????# ?????????????????????? | | ???????????????##??## #?????????????????????? | | ???????????????# ?# ###???????????????????? | | ???????????????# ??# #???????????????????? | | ???????????????# #??#R #???????????????????? | | ???????????????# #?# #???????????????????? | | ???????????????# ##@ #???????????????????? | | ?????????????????# ###???????????????????? | | ?????????????????# ##????????????????????? | | ?????????????????### #????????????????????? | | ?????????????????### #????????????????????? | | ?????????????????# ##????????????????????? | | ????????????????## ##?????????????????????? | | ???????????????## ##?????????????????????? | | ???????????????# ##????????????????????? | | ???????????????### ## ####?????????????????? | | ?????????????????###?## "#####?????????????? | | ??????????????????????# " ##????????????? | | ??????????????????????#"" " "???????? | | ??????????????????????#"" ## "???????? | | ??????????????????????# "" #? ## "???????? | | ??????????????????????# #?? ##??????????? | | ??????????????????????#" & #??? #???????????? | | ??????????????????????## & #?????????????????? | | ??????????????????????# "" #?????????????????? | | ??????????????????????#"" ##?????????????????? | | ??????????????????????##" ##????????????????? | | ??????????????????????## # #????????????????? | | ??????????????????????# ###????????????????? | | ??????????????????????# #??????????????????? | | ??????????????????????# ##??????????????????? | +----------------------------------------------------+ Best States ------------- Heat Dissipation 25 Energy Generation 15 Energy Capacity 250 Matter Stores 300 Matter Capacity 300 Sight Range 16 Terrain Scan Density 10 Evasion (%) 55 Targeting Accuracy 6 Recoil Reduction 2 Item Schematics ----------------- None Robot Schematics ------------------ None Fabricated ------------ Nothing Alien Tech Used ----------------- None Achievements -------------- None Challenges ------------ None Game ------ Seed StealthChainStreamer Manual? 0 Play Time 00:23:25 Cumulative 41.2 hours Start 2024.12.07 @ 19:59:45 End 2024.12.07 @ 20:30:25 Sessions 1 Manual Loads 0 Difficulty Rogue Special Mode None Game No. 30 Rogue 24 Adventurer 6 Explorer 0 Win Type - Total 0 Types 0/0/0/0/0/0/0/0/0 Lore% 20 Gallery% 31 Achievement% 28 Wizard Run 0 Options --------- Layout 1 ASCII 0 Keyboard 0 Movement Arrows Keybinds 0 Fullscreen 2 Font 24/Smallcaps Map View 50x35 Zoom Use 0% Tactical HUD 1 Map Filters NONE Filters NONE Steam 1 RUN: 35244e32-8ea7-4b43-892f-bfecbb8d142f